Cogmind - Beta 12 @@@ ROGUE MODE // 2023.04.10 @ 11:49:36 Player: Mr Goldstein Result: Destroyed by S-27 Virus with Autogun Performance ------------- Evolutions (6) 3000 Regions Visited (11) 2200 Robots Destroyed (9) 45 Value Destroyed (236) 236 Prototype IDs (0) 0 Alien Tech Used (0) 0 Bonus (3016) 3016 TOTAL SCORE: 8497 Bonus ------- Pacifist 2516 Entered DSFs 500 Cogmind --------- Core Integrity 0/1150 Matter 120/300 Energy 100/100 System Corruption 9% Temperature Cool (0) Movement Core (50) Location -4/Factory Parts ------- > --- POWER (1) -------- (None) > --- PROPULSION (2) --- (None) > --- UTILITY (14) ----- (None) > --- WEAPON (2) ------- (None) > --- INVENTORY (5) ---- Powered Hammer Peak State ------------ > --- POWER ------------ (None) > --- PROPULSION ------- (None) > --- UTILITY ---------- (None) > --- WEAPON ----------- Powered Hammer Blade Saw > --- INVENTORY -------- (None) [Rating: 7] Favorites ----------- Power None Propulsion None Utility None Weapon Blade Saw Impact Weapon Powered Hammer Slashing Weapon Blade Saw Build | -11 -10 -9 -9 -9 -7 -6 -5 -5 -4 -4 -4 ------- Run | Jun Mat Mat Sto Rec Fac Fac Fac DSF Fac Was Fac Slots Evolved 12 | . . 2 . . 4 2 2 . 2 . . Power . | . . . . . . . . . . . . Propulsion . | . . . . . . . . . . . . Utility 12 | . . 2 . . 4 2 2 . 2 . . Weapon . | . . . . . . . . . . . . Parts Attached 3 | . . . . . 1 . . . . . 2 Power . | . . . . . . . . . . . . Engine . | . . . . . . . . . . . . Core . | . . . . . . . . . . . . Reactor . | . . . . . . . . . . . . Propulsion . | . . . . . . . . . . . . Treads . | . . . . . . . . . . . . Leg . | . . . . . . . . . . . . Wheel . | . . . . . . . . . . . . Hover . | . . . . . . . . . . . . Flight . | . . . . . . . . . . . . Utility . | . . . . . . . . . . . . Device . | . . . . . . . . . . . . Storage . | . . . . . . . . . . . . Processor . | . . . . . . . . . . . . Hackware . | . . . . . . . . . . . . Protection . | . . . . . . . . . . . . Artifact . | . . . . . . . . . . . . Weapon 3 | . . . . . 1 . . . . . 2 Energy Gun . | . . . . . . . . . . . . Energy Cannon . | . . . . . . . . . . . . Ballistic Gun . | . . . . . . . . . . . . Ballistic Cannon . | . . . . . . . . . . . . Launcher . | . . . . . . . . . . . . Special Weapon . | . . . . . . . . . . . . Impact Weapon 1 | . . . . . . . . . . . 1 Slashing Weapon 2 | . . . . . 1 . . . . . 1 Piercing Weapon . | . . . . . . . . . . . . Special Melee Weapon . | . . . . . . . . . . . . Unidentified Prototypes . | . . . . . . . . . . . . Parts Lost 1 | . . . . . . . . . . . 1 Power . | . . . . . . . . . . . . Propulsion . | . . . . . . . . . . . . Utility . | . . . . . . . . . . . . Weapon 1 | . . . . . . . . . . . 1 Highest Loss Streak 1 | . . . . . . . . . . . 1 To Critical Strikes . | . . . . . . . . . . . . Average Slot Usage (%) . | . . . . . . . . . . . 1 Naked Turns 842 | . 43 44 37 95 124 258 14 28 79 52 68 Heaviest Build 2 | . . . . . . . . . . . 2 Greatest Support 3 | 3 3 3 3 3 3 3 3 3 3 3 3 Greatest Overweight (x) . | . . . . . . . . . . . . Average Overweight (x) . | . . . . . . . . . . . . Largest Inventory Capacity 5 | 5 5 5 5 5 5 5 5 5 5 5 5 Average Capacity 5 | 5 5 5 5 5 5 5 5 5 5 5 5 Most Carried 2 | . . . . . 2 2 2 2 2 2 2 Average Carried 1 | . . . . . . 2 2 2 2 2 1 Final Capacity 5 | 5 5 5 5 5 5 5 5 5 5 5 5 Final Carried 2 | . . . . . 2 2 2 2 2 2 1 Class Distribution -------------------- 100% | Mutant Dominant Class ---------------- Mutant | -10/Materials Mutant | -9/Materials Mutant | -9/Storage Mutant | -9/Recycling Mutant | -7/Factory Mutant | -6/Factory Mutant | -5/Factory Mutant | -5/DSF Mutant | -4/Factory Mutant | -4/Waste Mutant | -4/Factory Resources | -11 -10 -9 -9 -9 -7 -6 -5 -5 -4 -4 -4 ----------- Run | Jun Mat Mat Sto Rec Fac Fac Fac DSF Fac Was Fac Matter Collected . | . . . . . . . . . . . . Remotely . | . . . . . . . . . . . . Salvage Created 69 | . . . . . . . . . . . 69 Parts 9 | . . . . . . . . . . . 9 Haulers Intercepted . | . . . . . . . . . . . . Recyclers Shooed . | . . . . . . . . . . . . Parts Field Recycled . | . . . . . . . . . . . . Retrieved Matter . | . . . . . . . . . . . . Parts Self-Destructed . | . . . . . . . . . . . . Prevented . | . . . . . . . . . . . . Kills | -11 -10 -9 -9 -9 -7 -6 -5 -5 -4 -4 -4 ------- Run | Jun Mat Mat Sto Rec Fac Fac Fac DSF Fac Was Fac Combat Hostiles Destroyed 5 | . . . . . . . . . . . 5 AOE 5 | . . . . . . . . . . . 5 Classes Destroyed 4 | . . . . . . . . . . . 4 Worker 2 | . . . . . . . . . . . 2 Builder 1 | . . . . . . . . . . . 1 Watcher 1 | . . . . . . . . . . . 1 Swarmer 5 | . . . . . . . . . . . 5 Best Kill Streak 9 | . . . . . . . . . . . 9 Combat Bots Only 5 | . . . . . . . . . . . 5 Max Kills in Single Turn 9 | . . . . . . . . . . . 9 Gunslinging . | . . . . . . . . . . . . Exploded 5 | . . . . . . . . . . . 5 Melee . | . . . . . . . . . . . . Uniques/NPCs Destroyed . | . . . . . . . . . . . . Combat | -11 -10 -9 -9 -9 -7 -6 -5 -5 -4 -4 -4 -------- Run | Jun Mat Mat Sto Rec Fac Fac Fac DSF Fac Was Fac Damage Taken 2122 | . . 133 20 35 202 515 . 20 142 125 930 Core 2075 | . . 133 20 35 202 515 . 20 142 125 883 Absorbed by Shields . | . . . . . . . . . . . . Core Remaining (%) 76 | 100 100 . . 53 71 39 . 98 . . . Volleys Fired . | . . . . . . . . . . . . Largest . | . . . . . . . . . . . . Hottest . | . . . . . . . . . . . . Shots Fired . | . . . . . . . . . . . . Gun . | . . . . . . . . . . . . Cannon . | . . . . . . . . . . . . Launcher . | . . . . . . . . . . . . Special . | . . . . . . . . . . . . Kinetic . | . . . . . . . . . . . . Thermal . | . . . . . . . . . . . . Explosive . | . . . . . . . . . . . . Electromagnetic . | . . . . . . . . . . . . Robot Hit Streak . | . . . . . . . . . . . . Robot Miss Streak . | . . . . . . . . . . . . Penetration Max . | . . . . . . . . . . . . Secondary Targets . | . . . . . . . . . . . . Shots Hit Robots . | . . . . . . . . . . . . Core Hits 7 | . . . . . . 1 . . . . 6 Critical Kills . | . . . . . . . . . . . . Critical Parts Destroyed . | . . . . . . . . . . . . Critical Strikes . | . . . . . . . . . . . . Melee Attacks 2 | . . . . . . . . . . . 2 Impact 1 | . . . . . . . . . . . 1 Slashing 1 | . . . . . . . . . . . 1 Piercing . | . . . . . . . . . . . . Sneak Attacks . | . . . . . . . . . . . . Combat Hostiles . | . . . . . . . . . . . . Follow-up Attacks . | . . . . . . . . . . . . Damage Inflicted 1011 | . . . 1 7 . 51 . . . . 952 Guns . | . . . . . . . . . . . . Cannons . | . . . . . . . . . . . . Explosions 952 | . . . . . . . . . . . 952 Melee . | . . . . . . . . . . . . Ramming 59 | . . . 1 7 . 51 . . . . . Kinetic . | . . . . . . . . . . . . Thermal 952 | . . . . . . . . . . . 952 Explosive . | . . . . . . . . . . . . Electromagnetic . | . . . . . . . . . . . . Impact . | . . . . . . . . . . . . Slashing . | . . . . . . . . . . . . Piercing . | . . . . . . . . . . . . Highest Corruption 9 | . . . . . . . . . . 9 9 Average Corruption 9 | . . . . . . . . . . 9 9 Corruption Purged . | . . . . . . . . . . . . Corruption Blocked . | . . . . . . . . . . . . Effects 4 | . . . . . . . . . . 1 3 Message Errors 1 | . . . . . . . . . . . 1 Matter Fused 2 | . . . . . . . . . . 1 1 Data Loss (minor) 1 | . . . . . . . . . . . 1 Overload Shots . | . . . . . . . . . . . . Overflow Damage 264 | . . . . . . . . . . . 264 Projectiles . | . . . . . . . . . . . . Explosions 264 | . . . . . . . . . . . 264 Melee . | . . . . . . . . . . . . Knockbacks 1 | . . . . . . 1 . . . . . Impact 1 | . . . . . . 1 . . . . . Kinetic . | . . . . . . . . . . . . Secondary . | . . . . . . . . . . . . Self-Inflicted Damage 393 | . . . . 3 . 21 . . . . 369 Shots 4 | . . . . . . . . . . . 4 Rammed 18 | . . . 1 2 . 15 . . . . . Targets Rammed 18 | . . . 1 2 . 15 . . . . . Kicked . | . . . . . . . . . . . . Crushed . | . . . . . . . . . . . . Highest Temperature 8 | . . . . . . . . . . . 8 Average Temperature 8 | . . . . . . . . . . . 8 Received Heat Transfer 231 | . . 69 . 9 66 87 . . . . . Siege Activations . | . . . . . . . . . . . . Robots Corrupted . | . . . . . . . . . . . . Combat Hostiles . | . . . . . . . . . . . . Parts Fried . | . . . . . . . . . . . . Impact Corruptions . | . . . . . . . . . . . . Robots Melted . | . . . . . . . . . . . . Combat Hostiles . | . . . . . . . . . . . . Parts Melted 2 | . . . . . . . . . . . 2 Heat Transferred 600 | . . . . . . . . . . . 600 Parts Sabotaged . | . . . . . . . . . . . . Parts Stolen . | . . . . . . . . . . . . Parts Stripped . | . . . . . . . . . . . . Power Chain Reactions . | . . . . . . . . . . . . Missiles Intercepted . | . . . . . . . . . . . . Alert | -11 -10 -9 -9 -9 -7 -6 -5 -5 -4 -4 -4 ------- Run | Jun Mat Mat Sto Rec Fac Fac Fac DSF Fac Was Fac Peak Influence 335 | . . 15 5 1 48 254 123 104 69 54 335 Initial 123 | . . . 5 1 . 23 123 89 54 24 37 Average 62 | . . 2 5 1 21 119 123 90 57 41 112 Maximum Alert Level 1 | . . . . . . 1 . . . . 1 Low Security (%) 95 | 100 100 100 100 100 100 93 100 100 100 100 76 Level 1 4 | . . . . . . 6 . . . . 23 Level 2 . | . . . . . . . . . . . . Level 3 . | . . . . . . . . . . . . Level 4 . | . . . . . . . . . . . . Level 5 . | . . . . . . . . . . . . High Security . | . . . . . . . . . . . . Max Security . | . . . . . . . . . . . . Squads Dispatched 8 | . . . 1 . 1 5 . . . . 1 Investigation 3 | . . . 1 . . 1 . . . . 1 Extermination 1 | . . . . . . 1 . . . . . Reinforcement 4 | . . . . . 1 3 . . . . . Assault . | . . . . . . . . . . . . Garrison . | . . . . . . . . . . . . Intercept . | . . . . . . . . . . . . Searches Triggered . | . . . . . . . . . . . . Construction Impeded . | . . . . . . . . . . . . Haulers Reinforced . | . . . . . . . . . . . . Active Scanning Responses . | . . . . . . . . . . . . Cargo Convoy Interrupts . | . . . . . . . . . . . . Stealth | -11 -10 -9 -9 -9 -7 -6 -5 -5 -4 -4 -4 --------- Run | Jun Mat Mat Sto Rec Fac Fac Fac DSF Fac Was Fac Distress Signals 1 | . . 1 . . . . . . . . . Communications Jammed . | . . . . . . . . . . . . Distress Signals . | . . . . . . . . . . . . Times Spotted 62 | . . 7 1 1 5 19 . 1 2 6 20 Peak Tracking Total 13 | . . 9 1 1 4 13 . 2 2 6 11 Tactical Retreats 5 | . . . . . . 3 . 1 . . 1 Traps | -11 -10 -9 -9 -9 -7 -6 -5 -5 -4 -4 -4 ------- Run | Jun Mat Mat Sto Rec Fac Fac Fac DSF Fac Was Fac Traps Triggered 2 | . . . . . . . . . 2 . . Indirectly . | . . . . . . . . . . . . Trap Hack Attempts . | . . . . . . . . . . . . Triggered . | . . . . . . . . . . . . Disarmed . | . . . . . . . . . . . . Reprogrammed . | . . . . . . . . . . . . Reused . | . . . . . . . . . . . . Traps Extracted . | . . . . . . . . . . . . Installed . | . . . . . . . . . . . . Triggered . | . . . . . . . . . . . . Machines | -11 -10 -9 -9 -9 -7 -6 -5 -5 -4 -4 -4 ---------- Run | Jun Mat Mat Sto Rec Fac Fac Fac DSF Fac Was Fac Machines Disabled 5 | . . . . . . . . . . . 5 Max in Single Turn 5 | . . . . . . . . . . . 5 Machines Repaired . | . . . . . . . . . . . . Machines Sabotaged . | . . . . . . . . . . . . Overloaded Fab Kills . | . . . . . . . . . . . . Hacking | -11 -10 -9 -9 -9 -7 -6 -5 -5 -4 -4 -4 --------- Run | Jun Mat Mat Sto Rec Fac Fac Fac DSF Fac Was Fac Machines Accessed 8 | . . . 1 . 1 2 1 . . . 3 Terminals 7 | . . . 1 . 1 1 1 . . . 3 Fabricators 1 | . . . . . . 1 . . . . . Repair Stations . | . . . . . . . . . . . . Recycling Units . | . . . . . . . . . . . . Scanalyzers . | . . . . . . . . . . . . Garrison Access . | . . . . . . . . . . . . Total Hacks 24 | . . . 4 . 3 4 2 . . . 11 Successful 8 | . . . . . 1 3 1 . . . 3 Failed 16 | . . . 4 . 2 1 1 . . . 8 Catastrophic 4 | . . . 1 . . 1 . . . . 2 Database Lockouts . | . . . . . . . . . . . . Manual 15 | . . . 1 . . 4 . . . . 10 Terminals 23 | . . . 4 . 3 3 2 . . . 11 Fabricators 1 | . . . . . . 1 . . . . . Repair Stations . | . . . . . . . . . . . . Recycling Units . | . . . . . . . . . . . . Scanalyzers . | . . . . . . . . . . . . Garrison Access . | . . . . . . . . . . . . Terminal Hacks 4 | . . . . . 1 1 1 . . . 1 Open DSF 1 | . . . . . . . 1 . . . . Level Access Points 1 | . . . . . 1 . . . . . . Branch Access Points 1 | . . . . . . 1 . . . . . Emergency Access Points 1 | . . . . . . . . . . . 1 Fabricator Hacks . | . . . . . . . . . . . . Repair Station Hacks . | . . . . . . . . . . . . Recycling Unit Hacks . | . . . . . . . . . . . . Scanalyzer . | . . . . . . . . . . . . Garrison Access Hacks . | . . . . . . . . . . . . Unauthorized Hacks 4 | . . . . . . 2 . . . . 2 Terminals 3 | . . . . . . 1 . . . . 2 Assimilate 1 | . . . . . . 1 . . . . . Botnet 2 | . . . . . . . . . . . 2 Fabricators 1 | . . . . . . 1 . . . . . Overload 1 | . . . . . . 1 . . . . . Repair Stations . | . . . . . . . . . . . . Recycling Units . | . . . . . . . . . . . . Scanalyzers . | . . . . . . . . . . . . Garrison Access . | . . . . . . . . . . . . Data Cores Recovered . | . . . . . . . . . . . . Used . | . . . . . . . . . . . . Hacking Detections 6 | . . . 1 . 1 1 . . . . 3 Full Trace Events 2 | . . . 1 . . . . . . . 1 Feedback Events . | . . . . . . . . . . . . Feedback Blocked . | . . . . . . . . . . . . Robot Schematics Acquired . | . . . . . . . . . . . . Robots Built . | . . . . . . . . . . . . Authchips . | . . . . . . . . . . . . Time . | . . . . . . . . . . . . Total Robot Build Rating . | . . . . . . . . . . . . Part Schematics Acquired . | . . . . . . . . . . . . Parts Built . | . . . . . . . . . . . . Authchips . | . . . . . . . . . . . . Time . | . . . . . . . . . . . . Total Part Build Rating . | . . . . . . . . . . . . Parts Repaired . | . . . . . . . . . . . . Time . | . . . . . . . . . . . . Parts Recycled . | . . . . . . . . . . . . Recycled Matter . | . . . . . . . . . . . . Retrieved Matter . | . . . . . . . . . . . . Retrieved Components . | . . . . . . . . . . . . Parts Scanalyzed . | . . . . . . . . . . . . Part Schematics Acquired . | . . . . . . . . . . . . Parts Damaged . | . . . . . . . . . . . . Bothacking | -11 -10 -9 -9 -9 -7 -6 -5 -5 -4 -4 -4 ------------ Run | Jun Mat Mat Sto Rec Fac Fac Fac DSF Fac Was Fac Used RIF Installer . | . . . . . . . . . . . . Robots Hacked . | . . . . . . . . . . . . Non-combat . | . . . . . . . . . . . . Combat . | . . . . . . . . . . . . Robot Hacks Applied . | . . . . . . . . . . . . Relay Couplers Released . | . . . . . . . . . . . . Fabnet Peak Effective % . | . . . . . . . . . . . . Robots Rewired 1 | . . . . . . 1 . . . . . Allies Hacked . | . . . . . . . . . . . . Hacks Repelled . | . . . . . . . . . . . . Allies | -11 -10 -9 -9 -9 -7 -6 -5 -5 -4 -4 -4 -------- Run | Jun Mat Mat Sto Rec Fac Fac Fac DSF Fac Was Fac Total Allies 1 | . . . . . . 1 . . . . . Largest Group 1 | . . . . . . 1 . . . . . Highest-Rated Group 32 | . . . . . . 32 . . . . . Highest-Rated Ally 32 | . . . . . . 32 . . . . . Total Orders . | . . . . . . . . . . . . Ally Attacks 2 | . . . . . . 2 . . . . . Total Damage 95 | . . . . . . 95 . . . . . Kills . | . . . . . . . . . . . . Allies Corrupted . | . . . . . . . . . . . . Allies Melted . | . . . . . . . . . . . . Intel | -11 -10 -9 -9 -9 -7 -6 -5 -5 -4 -4 -4 ------- Run | Jun Mat Mat Sto Rec Fac Fac Fac DSF Fac Was Fac Robot Analysis Total . | . . . . . . . . . . . . Derelict Logs Recovered . | . . . . . . . . . . . . Drone Launches . | . . . . . . . . . . . . Drone Recoveries . | . . . . . . . . . . . . Exploration | -11 -10 -9 -9 -9 -7 -6 -5 -5 -4 -4 -4 ------------- Run | Jun Mat Mat Sto Rec Fac Fac Fac DSF Fac Was Fac Turns Passed 877 | 10 43 44 37 95 125 258 14 28 79 52 92 Spaces Moved 1570 | 19 86 88 72 186 243 395 27 56 128 104 166 Core 1570 | 19 86 88 72 186 243 395 27 56 128 104 166 Treads . | . . . . . . . . . . . . Legs . | . . . . . . . . . . . . Wheels . | . . . . . . . . . . . . Hover . | . . . . . . . . . . . . Flight . | . . . . . . . . . . . . Fastest Speed 50 | 50 50 50 50 50 50 50 50 50 50 50 50 Average Speed 50 | 50 50 50 50 50 50 50 50 50 50 50 50 Slowest Speed 50 | 50 50 50 50 50 50 50 50 50 50 50 50 Overloaded Moves . | . . . . . . . . . . . . Propulsion Burnouts . | . . . . . . . . . . . . Robots Hopped . | . . . . . . . . . . . . Cave-ins Triggered . | . . . . . . . . . . . . Exploration Rate (%) 24 | 4 20 18 18 53 11 13 1 59 6 89 7 Regions Visited 11 Branch Regions 2 Pre-discovered Areas . | . . . . . . . . . . . . Known Exits Taken 2 | . . . . . 1 . 1 . . . . Unknown Exits Taken 6 | 1 1 1 1 1 . 1 . . . . . Scrap Searched . | . . . . . . . . . . . . Spaces Dug . | . . . . . . . . . . . . Terrain Destroyed 19 | . . . . . . . . . . . 19 Melee . | . . . . . . . . . . . . Projectile . | . . . . . . . . . . . . AOE 19 | . . . . . . . . . . . 19 Terrain Rammed . | . . . . . . . . . . . . Walls Destroyed . | . . . . . . . . . . . . Machines Disabled . | . . . . . . . . . . . . Actions | -11 -10 -9 -9 -9 -7 -6 -5 -5 -4 -4 -4 --------- Run | Jun Mat Mat Sto Rec Fac Fac Fac DSF Fac Was Fac Total 1648 | 18 85 87 72 187 246 455 26 55 143 103 171 Wait 1 | . . . . . . 1 . . . . . Move 1561 | 18 85 87 71 185 242 395 26 55 128 103 166 Hop . | . . . . . . . . . . . . Pick Up 2 | . . . . . 2 . . . . . . Fast Attach . | . . . . . . . . . . . . Attach 3 | . . . . . 1 . . . . . 2 Detach 2 | . . . . . 1 . . . . . 1 Swap . | . . . . . . . . . . . . Drop . | . . . . . . . . . . . . Fire . | . . . . . . . . . . . . Melee 2 | . . . . . . . . . . . 2 Ram 17 | . . . 1 2 . 14 . . . . . Kick . | . . . . . . . . . . . . Crush . | . . . . . . . . . . . . Escape Stasis 15 | . . . . . . . . . 15 . . Rewire 45 | . . . . . . 45 . . . . . Trap . | . . . . . . . . . . . . Miscellaneous . | . . . . . . . . . . . . Route ------- -11/Junkyard -10/Materials -9/Materials -9/Storage -9/Recycling -7/Factory (discovered 4 exits: *Fac x4) -6/Factory (discovered 3 exits: *Fac / Low x2) -5/Factory -5/DSF -4/Factory -4/Waste -4/Factory History --------- Turn | Location | Event 3 | -11/Junkyard | Discovered new exit (range 15) 11 | -11/Junkyard | Entered Materials 48 | -10/Materials | Discovered new exit (range 12) 54 | -10/Materials | Entered another Materials area 54 | -9/Materials | Evolved 2 slots: Utility x2 91 | -9/Materials | Discovered new exit (range 16) 98 | -9/Materials | Entered Storage 133 | -9/Storage | Used back door to open Recycling access 133 | -9/Storage | Discovered new exit (range 5) 135 | -9/Storage | Entered Recycling 223 | -9/Recycling | Discovered new exit (range 15) 230 | -9/Recycling | Entered Factory 230 | -7/Factory | Evolved 4 slots: Utility x4 305 | -7/Factory | Build established: Mutant 343 | -7/Factory | Identified exit to Factory 355 | -7/Factory | Entered another Factory area 355 | -6/Factory | Evolved 2 slots: Utility x2 425 | -6/Factory | Identified exit to Lower Caves 580 | -6/Factory | Spotted B-75 Beast 610 | -6/Factory | Discovered new exit (range 5) 611 | -6/Factory | Core integrity fell below 50% 613 | -6/Factory | Entered another Factory area 613 | -5/Factory | Evolved 2 slots: Utility x2 627 | -5/Factory | Identified exit to DSF 627 | -5/Factory | Entered DSF 647 | -5/DSF | Additional patrols routed to DSF 649 | -5/DSF | Discovered new exit (range 12) 655 | -5/DSF | Entered Factory 655 | -4/Factory | Evolved 2 slots: Utility x2 734 | -4/Factory | Sucked down chute 734 | -4/Factory | Entered Waste 738 | -4/Waste | Spotted C-40 Crusher 740 | -4/Waste | Spotted C-40 Crusher 742 | -4/Waste | Spotted C-40 Crusher 748 | -4/Waste | Spotted C-40 Crusher 749 | -4/Waste | EMP discharged 751 | -4/Waste | Spotted C-40 Crusher 769 | -4/Waste | Spotted C-40 Crusher 781 | -4/Waste | Discovered new exit (range 11) 786 | -4/Waste | Entered Factory 840 | -4/Factory | Core integrity fell below 50% 857 | -4/Factory | Core integrity fell below 20% 878 | -4/Factory | Destroyed by S-27 Virus with Autogun Last Messages --------------- 00856_ S-27 Virus destroyed. 00856_ Power Conduit explodes. 00856_ Destroyed Adv. Sensor Array. 00856_ Destroyed Antigrav System. 00856_ Destroyed Welding Torch. 00856_ W-44 Eye destroyed. 00856_ U-05 Engineer destroyed. 00856_ Power Conduit explodes. 00856_ K-01 Serf destroyed. 00856_ Med. Matter Pod melted. 00856_ K-01 Serf destroyed. 00857_ K-01 Serf collects debris. 00869_ C-30 ARC bursts open, deploying its payload. 00869_ S-27 Virus unfolds itself. 00871_ K-01 Serf collects debris. 00873_ System corrupted: Component data lost. 00876_ Connecting with Terminal... 00876_ ALERT: Suspicious activity at Terminal F018. Dispatching Investigation squad. 00876_ Blade Saw destroyed. Map ----- +----------------------------------------------------+ | ????????????????????"" # #???????? | | ?????????????????????" # #???????? | | ?????????????????????" ?# #???????? | | ????????????????????????# # ""???? | | ????????????????????????# "/% ""???? | | ????????????????????????# # ?????? | | ????????????????????????# #? ???? | | ????????????????????????# #?? ??? | | ????????????????????????# ####+#####???###?? | | ????????????????????????# #????????????????? | | ????????????????????????# #????????????????? | | ????????????????????????# s #????????????????? | | ????????????????????????# #????????????????? | | ????????????????????????# #????????????????? | | ????????????????????????+ #????????????????? | | ????????????????????????# #????????????????? | | ????????????????????????# #????????????????? | | ????????????????????????# #????????????????? | | ???????????????????????## ##???????????????? | | ???????????????????????# #???????????????? | | ???????????????????????# #######?????????? | | ???????????????????????# w ??????? | | ???????????????????????# T" ?????? | | ???????????????????????# " ??????? | | ???????????????????????# ??????? | | ???????????????????????# @ k ???????? | | ???????????????????????# ! #########???????? | | ?????????????????????? #???????????????? | | ?????????????????????#############???????????????? | | ?????????????????????????????????????????????????? | | ?????????????????????????????????????????????????? | | ?????????????????????????????????????????????????? | | ?????????????????????????????????????????????????? | | ?????????????????????????????????????????????????? | | ?????????????????????????????????????????????????? | | ?????????????????????????????????????????????????? | | ?????????????????????????????????????????????????? | | ?????????????????????????????????????????????????? | | ?????????????????????????????????????????????????? | | ?????????????????????????????????????????????????? | | ?????????????????????????????????????????????????? | | ?????????????????????????????????????????????????? | | ?????????????????????????????????????????????????? | | ?????????????????????????????????????????????????? | | ?????????????????????????????????????????????????? | | ?????????????????????????????????????????????????? | | ?????????????????????????????????????????????????? | | ?????????????????????????????????????????????????? | | ?????????????????????????????????????????????????? | | ?????????????????????????????????????????????????? | +----------------------------------------------------+ Best States ------------- Heat Dissipation 43 Energy Generation 5 Energy Capacity 100 Matter Stores 151 Matter Capacity 300 Sight Range 16 Terrain Scan Density 10 Evasion (%) 50 Item Schematics ----------------- None Robot Schematics ------------------ None Fabricated ------------ Nothing Alien Tech Used ----------------- None Achievements -------------- None Challenges ------------ None Game ------ Seed GravmagIonWeb Manual? 0 Play Time 00:12:38 Cumulative 91.2 hours Start 2023.04.10 @ 11:38:38 End 2023.04.10 @ 11:49:36 Sessions 1 Manual Loads 0 Difficulty Rogue Special Mode None Game No. 141 Rogue 141 Adventurer 0 Explorer 0 Win Type - Total 2 Types 2/0/0/0/0/0/0/0/0 Lore% 53 Gallery% 56 Achievement% 46 Wizard Run 0 Options --------- ASCII 0 Keyboard 0 Movement Numpad Keybinds 0 Fullscreen 1 Font 12/Smallcaps Map View 83x54 Tactical HUD 1 Map Filters NONE Filters NONE Steam 1 RUN: 0d3aaea7-4909-4da2-b3a2-5e118e112247